bitfinex/quotes_SOLUSD_20250901
["timestamp","ask_amount","ask_price","bid_price","bid_amount"]
[1756741581553,133.9,199.01,198.97,4.2568162]
[1756741581782,134.6,199.01,198.97,48.76247341]
[1756741582074,134.6,199.01,198.98,4.2568162]
[1756741582256,133.9,199.01,198.99,4.2568162]
[1756741583052,133.9,199.01,199.0,4.2568162]
[1756741583255,133.9,199.01,199.0,4.9368162]
[1756741583579,0.03,199.04,199.0,4.2568162]
[1756741583779,0.7,199.03,198.99,44.5053101]
[1756741583969,0.7,199.02,198.99,44.5053101]
[1756741584153,0.03,199.04,199.0,4.2568162]
[1756741584480,0.73,199.04,199.01,39.48]
[1756741584680,0.7,199.03,199.01,39.48]
[1756741584885,0.03,199.04,199.01,39.48]
[1756741585084,0.03,199.04,199.02,4.2568162]
[1756741585483,0.73,199.04,199.01,43.7368162]
[1756741585856,0.73,199.04,199.01,48.76155679]
[1756741586349,0.03,199.04,199.01,48.76155679]
[1756741586961,0.03,199.04,199.01,49.44155679]
[1756741587162,0.03,199.04,199.02,9.28122701]
[1756741587772,0.03,199.04,199.03,43.7368162]
[1756741588093,0.03,199.04,199.03,44.4168162]
[1756741588283,0.03,199.04,199.03,43.7368162]
[1756741588780,0.03,199.04,199.03,48.76118438]
[1756741589166,0.73,199.04,199.01,9.28147855]
[1756741589384,0.03,199.04,199.03,39.46]
[1756741590173,0.03,199.04,199.03,43.7168162]
[1756741590592,0.03,199.04,199.03,44.3968162]
[1756741590789,0.03,199.04,199.03,49.42118438]
[1756741591789,0.03,199.04,199.03,63.01677839]
[1756741597198,0.03,199.04,199.03,89.01677839]
[1756741597399,1e-08,199.04,199.03,63.5192152]
[1756741597584,1e-08,199.04,199.03,65.67410777]
[1756741598391,1e-08,199.04,199.03,52.21410777]
[1756741598589,1e-08,199.04,199.03,65.67410777]
[1756741600410,0.03,199.08,199.07,13.59559401]
[1756741600582,0.03,199.08,199.07,57.79474607]
[1756741600782,0.03,199.08,199.07,58.48474607]
[1756741600994,0.03,199.08,199.07,65.52063268]
[1756741601391,1e-08,199.08,199.07,65.52063268]
[1756741601999,0.2,199.1,199.09,39.59559401]
[1756741602202,0.2,199.1,199.09,83.93685717]
[1756741602500,0.2,199.1,199.09,84.62685717]
[1756741602682,0.2,199.1,199.09,45.18685717]
[1756741602996,0.2,199.1,199.09,84.62685717]
[1756741603506,1e-08,199.1,199.09,93.90652735]
[1756741603682,1e-08,199.1,199.09,54.46652735]
[1756741603884,1e-08,199.11,199.1,13.73775558]
[1756741604085,1e-08,199.11,199.1,62.38138798]
[1756741604491,1e-08,199.13,199.1,62.38138798]
[1756741604695,1e-08,199.13,199.12,43.99457178]
[1756741604900,1e-08,199.13,199.12,83.43457178]
[1756741605212,0.03,199.18,199.13,13.73775558]
[1756741605399,0.03,199.18,199.17,30.2568162]
[1756741605608,0.03,199.18,199.17,69.6968162]
[1756741606110,0.03,199.18,199.17,71.7083322]
[1756741606702,0.03,199.18,199.17,32.2683322]
[1756741606905,0.03,199.18,199.17,65.44]
[1756741607078,0.03,199.18,199.17,69.6968162]
[1756741607282,0.03,199.18,199.17,35.27765267]
[1756741607489,0.03,199.18,199.17,88.31324668]
[1756741608587,0.03,199.18,199.17,88.29324668]
[1756741609610,0.74,199.18,199.17,43.85241021]
[1756741609904,0.74,199.18,199.17,74.69765267]
[1756741610309,0.03,199.18,199.17,74.69765267]
[1756741612007,0.74,199.18,199.17,74.69765267]
[1756741612584,0.74,199.18,199.17,35.27765267]
[1756741612786,0.74,199.18,199.17,74.69765267]
[1756741613021,0.03,199.18,199.17,74.69765267]
[1756741613220,0.74,199.18,199.17,74.69765267]
[1756741613510,0.74,199.18,199.17,69.6768162]
[1756741613703,0.74,199.18,199.16,5.02104986]
[1756741613883,0.74,199.18,199.17,4.2568162]
[1756741614083,0.74,199.18,199.17,48.69765267]
[1756741614603,0.74,199.18,199.17,43.6768162]
[1756741614803,0.74,199.18,199.17,48.69765267]
[1756741615311,0.03,199.18,199.14,2.51397828]
[1756741615513,4.2568162,199.15,199.14,2.011819]
[1756741615681,4.9668162,199.15,199.14,2.011819]
[1756741616010,4.9668162,199.15,199.12,39.42]
[1756741616196,0.71,199.14,199.12,39.42]
[1756741616392,0.71,199.13,199.12,39.42]
[1756741616816,0.03,199.18,199.12,44.44209722]
[1756741617110,0.71,199.17,199.12,48.69891342]
[1756741617312,0.71,199.16,199.12,44.44209722]
[1756741617485,0.71,199.15,199.12,39.42]
[1756741617813,0.71,199.14,199.12,39.42]
[1756741618008,0.71,199.14,199.12,44.4420184]
[1756741618384,0.71,199.13,199.12,39.42]
[1756741618596,4.9668162,199.13,199.12,39.42]
[1756741618896,0.71,199.15,199.12,39.42]
[1756741619099,0.71,199.15,199.12,43.6768162]
[1756741619296,4.2568162,199.17,199.13,4.2568162]
[1756741619297,0.71,199.17,199.13,4.2568162]
[1756741619497,0.71,199.17,199.14,39.42]
[1756741619701,0.71,199.16,199.14,39.42]
[1756741620394,0.03,199.18,199.14,48.69833113]
[1756741620812,0.71,199.17,199.14,44.44151493]
[1756741621392,0.71,199.17,199.14,48.69833113]
[1756741621598,0.03,199.18,199.14,48.69833113]
[1756741621797,0.71,199.16,199.12,4.2568162]
[1756741622002,0.71,199.15,199.13,39.4]
[1756741622184,0.71,199.15,199.13,44.42171421]
[1756741622525,4.9668162,199.14,199.13,39.4]
[1756741622827,0.71,199.14,199.13,39.4]
[1756741623700,0.71,199.17,199.13,43.6568162]
[1756741624412,0.71,199.17,199.14,5.02159284]
[1756741624614,0.71,199.16,199.13,43.6568162]
[1756741624786,0.71,199.16,199.13,48.67860476]
[1756741625187,0.03,199.18,199.15,4.2568162]
[1756741625413,0.03,199.18,199.16,39.4]
[1756741625637,0.72,199.18,199.16,39.4]
[1756741627050,0.03,199.17,199.16,39.4]
[1756741627419,0.72,199.17,199.13,5.14159534]
[1756741627627,0.69,199.16,199.14,39.4]
[1756741627940,0.69,199.15,199.14,39.4]
[1756741628653,0.03,199.17,199.14,39.4]
[1756741628867,0.03,199.17,199.14,48.67835183]
[1756741629226,4.9468162,199.16,199.13,0.12]
[1756741629449,4.9468162,199.15,199.13,0.12]
[1756741629968,5.05083762,199.17,199.14,4.2568162]
[1756741629969,0.03,199.17,199.14,4.2568162]
[1756741630136,0.03,199.17,199.16,4.2568162]
[1756741630337,0.03,199.17,199.16,43.6568162]
[1756741630544,0.03,199.17,199.16,49.34790477]
[1756741630926,0.03,199.17,199.16,39.4]
[1756741631862,0.72,199.17,199.13,0.12]
[1756741632070,4.2568162,199.15,199.13,0.12]
[1756741632362,0.69,199.14,199.13,0.12]
[1756741632542,4.2568162,199.14,199.13,0.12]
[1756741632741,4.9468162,199.14,199.13,0.12]
[1756741633138,0.69,199.14,199.13,0.12]
[1756741633547,4.9468162,199.16,199.13,0.12]
[1756741634053,0.69,199.15,199.13,0.12]
[1756741634872,5.05093136,199.17,199.13,0.12]
[1756741634873,4.9468162,199.14,199.13,0.12]
[1756741635532,9.96840904,199.14,199.13,0.12]
[1756741637443,5.71159284,199.14,199.13,0.12]
[1756741637633,9.96840904,199.14,199.13,0.12]
[1756741638039,4.9468162,199.14,199.13,0.12]
[1756741638336,9.96840904,199.14,199.13,0.12]
[1756741638936,4.9468162,199.14,199.13,0.12]
[1756741640542,9.96840904,199.14,199.13,0.12]
[1756741641359,36.11057061,199.14,199.13,0.12]
[1756741641562,51.71930062,199.14,199.13,0.12]
[1756741641742,30.2568162,199.12,199.11,0.12]
[1756741641945,69.6568162,199.12,199.11,0.12]
[1756741642145,66.09,199.12,199.11,0.12]
[1756741642451,70.3468162,199.12,199.11,0.12]
[1756741643239,79.62572962,199.12,199.11,0.12]
[1756741643978,93.3634852,199.12,199.09,0.12]
[1756741644136,8.65579397,199.1,199.09,0.12]
[1756741644652,9.34579397,199.1,199.09,0.12]
[1756741645246,53.76839567,199.1,199.09,0.12]
[1756741645950,55.78213967,199.1,199.09,0.12]
[1756741646736,16.38213967,199.1,199.09,0.12]
[1756741646942,55.78213967,199.1,199.09,0.12]
[1756741647573,16.38213967,199.1,199.09,0.12]
[1756741647870,77.52532347,199.1,199.09,0.12]
[1756741648070,50.83532347,199.1,199.09,0.12]
[1756741648370,45.6705602,199.1,199.09,0.12]
[1756741648552,50.83532347,199.1,199.09,0.12]
[1756741648739,51.52532347,199.1,199.09,0.12]
[1756741649140,46.57850727,199.1,199.09,0.12]
[1756741649463,50.83532347,199.1,199.09,0.12]
[1756741650174,2.013744,199.1,199.09,0.12]
[1756741650341,6.2705602,199.1,199.09,0.12]
[1756741650866,4.2568162,199.1,199.09,0.12]
[1756741653242,4.2568162,199.1,199.09,0.79]
[1756741653658,4.2568162,199.1,199.09,0.12]
[1756741656062,79.74839567,199.1,199.09,0.12]
[1756741656368,59.43263467,199.1,199.09,0.12]
[1756741657549,20.03263467,199.1,199.09,0.12]
[1756741657758,55.17581847,199.1,199.09,0.12]
[1756741658202,49.48321677,199.1,199.09,0.12]
[1756741658342,69.79897777,199.1,199.09,0.12]
[1756741658543,69.6568162,199.1,199.09,0.12]
[1756741658765,30.2568162,199.1,199.09,0.12]
[1756741659456,4.2568162,199.1,199.09,0.12]
[1756741659672,5.683608,199.12,199.09,5.80283234]
[1756741659878,4.2568162,199.13,199.1,0.66]
[1756741660048,4.2568162,199.13,199.09,5.14284585]
[1756741660371,4.2568162,199.13,199.1,0.66]
[1756741660568,4.2568162,199.13,199.11,0.66]
[1756741660774,4.2568162,199.12,199.09,0.12]
[1756741660947,39.4,199.14,199.09,0.78]
[1756741660948,4.2568162,199.11,199.09,0.78]
[1756741661150,4.2568162,199.11,199.1,0.66]
[1756741661349,4.2568162,199.12,199.1,0.66]
[1756741662959,0.03,199.13,199.11,0.66]
[1756741663878,0.03,199.13,199.09,9.39962813]
[1756741664053,0.03,199.13,199.12,0.66]
[1756741667094,0.03,199.13,199.12,5.68209722]
[1756741668479,0.03,199.13,199.12,0.66]
[1756741668688,0.03,199.13,199.09,4.3768162]
[1756741668876,4.9568162,199.13,199.09,0.12]
[1756741669189,4.2568162,199.12,199.09,5.80279683]
[1756741669360,4.2568162,199.12,199.09,0.78]
[1756741669559,4.2568162,199.11,199.09,0.12]
[1756741669877,4.2568162,199.1,199.09,0.12]
[1756741670182,8.65579397,199.1,199.09,0.12]
[1756741670501,10.09157947,199.1,199.09,0.12]
[1756741671192,12.10512047,199.1,199.09,0.12]
[1756741671686,6.9403572,199.1,199.09,0.12]
[1756741671867,39.38,199.1,199.09,0.12]
[1756741672072,43.6368162,199.1,199.09,0.12]
[1756741672273,44.3068162,199.1,199.09,0.12]
[1756741672477,49.3294179,199.1,199.09,0.12]
[1756741672911,44.3068162,199.1,199.09,0.12]
[1756741673394,49.3294179,199.1,199.09,0.12]
[1756741674111,49.47157947,199.1,199.09,0.12]
[1756741674999,53.72839567,199.1,199.09,0.12]
[1756741676481,55.74213967,199.1,199.09,0.12]
[1756741680397,55.74213967,199.1,199.07,0.12]
[1756741680398,26.14216157,199.08,199.07,0.12]
[1756741680603,69.77897777,199.08,199.07,0.12]
[1756741680803,70.44897777,199.08,199.07,0.12]
[1756741681582,72.46282277,199.08,199.07,0.12]
[1756741681782,77.48592905,199.08,199.07,0.12]
[1756741683171,77.48592905,199.08,199.05,0.12]
[1756741683492,26.0,199.04,198.98,0.66]
[1756741683687,4.2568162,198.99,198.98,0.66]
[1756741685396,4.2568162,198.99,198.95,0.69]
[1756741685608,4.2568162,198.99,198.96,0.69]
[1756741685779,26.0,198.97,198.93,0.12]
[1756741685984,4.2568162,198.95,198.93,0.12]
[1756741686384,44.3268162,198.94,198.93,0.12]
[1756741686710,43.6368162,198.94,198.93,0.12]
[1756741687194,45.6518792,198.94,198.93,0.12]
[1756741687390,46.3418792,198.94,198.93,0.12]
[1756741687594,45.6518792,198.94,198.93,0.12]
[1756741687803,46.3418792,198.94,198.93,0.12]
[1756741688315,6.2718792,198.94,198.93,0.12]
[1756741688610,45.6518792,198.94,198.93,0.12]
[1756741688913,51.36852039,198.94,198.93,0.12]
[1756741689282,50.67852039,198.94,198.93,0.12]
[1756741689789,48.66345739,198.94,198.93,0.12]
[1756741690719,49.35345739,198.94,198.93,0.12]
[1756741692094,69.6368162,198.94,198.93,0.12]
[1756741692613,74.66345739,198.94,198.93,0.12]
[1756741693005,74.68345739,198.94,198.93,0.12]
[1756741694410,69.6568162,198.94,198.93,0.12]
[1756741694712,74.68345739,198.94,198.93,0.12]
[1756741695708,69.6568162,198.94,198.93,0.12]
[1756741695902,74.68345739,198.94,198.93,0.12]
[1756741696132,75.37345739,198.94,198.93,0.12]
[1756741696631,75.51561896,198.94,198.93,0.12]
[1756741697418,49.51561896,198.94,198.93,0.12]
[1756741699518,26.0,198.92,198.91,0.12]
[1756741699730,69.6568162,198.92,198.91,0.12]
[1756741699935,88.34138798,198.92,198.91,0.12]
[1756741700224,0.14216157,198.91,198.89,0.12]
[1756741700517,62.34138798,198.9,198.89,0.12]
[1756741700906,29.65968039,198.9,198.89,0.12]
[1756741701106,69.05968039,198.9,198.89,0.12]
[1756741701618,39.73775558,198.87,198.86,0.12]
[1756741701798,83.39457178,198.87,198.86,0.12]
[1756741702007,84.08457178,198.87,198.86,0.12]
[1756741703543,88.42298229,198.87,198.86,0.12]
[1756741703836,89.11298229,198.87,198.86,0.12]
[1756741705549,95.8312747,198.87,198.86,0.12]
[1756741706042,133.92216157,198.85,198.79,0.69]
[1756741706229,177.57897777,198.85,198.79,0.69]
[1756741706427,177.57897777,198.85,198.77,20.62432681]
[1756741706607,178.26897777,198.85,198.8,0.69]
[1756741707411,138.86897777,198.85,198.8,0.69]
[1756741707625,183.29789403,198.85,198.8,0.69]
[1756741708635,143.89789403,198.85,198.8,0.69]
[1756741708828,183.29789403,198.85,198.8,0.69]
[1756741709549,143.89789403,198.85,198.8,0.69]
[1756741709731,183.29789403,198.85,198.8,0.69]
[1756741711821,49.51789403,198.85,198.8,0.69]
[1756741712825,63.11348804,198.85,198.84,1e-08]
[1756741713021,26.0,198.82,198.77,0.12]
[1756741713222,4.2568162,198.78,198.77,0.12]
[1756741713443,43.6568162,198.78,198.77,0.12]
[1756741714223,70.48897777,198.78,198.77,0.12]
[1756741714420,75.51966496,198.78,198.77,0.12]
[1756741714950,67.19838715,198.78,198.77,0.12]
[1756741715124,63.11525897,198.78,198.77,0.12]
[1756741715464,67.2497444,198.78,198.77,0.12]
[1756741716032,53.8497444,198.78,198.77,0.12]
[1756741716346,63.11525897,198.78,198.77,0.12]
[1756741716951,23.71525897,198.78,198.77,0.12]
[1756741717144,23.5129059,198.78,198.77,0.12]
[1756741717336,73.88801451,198.78,198.77,0.12]
[1756741718034,13.73775558,198.77,198.75,0.12]
[1756741718240,43.79897777,198.76,198.75,0.12]
[1756741718442,10.15017116,198.76,198.75,0.12]
[1756741718644,49.55017116,198.76,198.75,0.12]
[1756741718822,58.88894897,198.76,198.75,0.12]
[1756741719023,63.14576517,198.76,198.75,0.12]
[1756741719849,62.42576517,198.76,198.75,0.12]
[1756741720247,63.14576517,198.76,198.75,0.12]
[1756741720559,64.44326617,198.76,198.75,0.12]
[1756741720854,65.16326617,198.76,198.75,0.12]
[1756741723537,71.88155858,198.76,198.75,0.12]
[1756741723942,13.73775558,198.75,198.73,0.12]
[1756741724134,4.39897777,198.74,198.73,0.12]
[1756741724652,48.83289177,198.74,198.73,0.12]
[1756741724955,49.55289177,198.74,198.73,0.12]
[1756741725254,48.83289177,198.74,198.73,0.12]
[1756741725637,49.55289177,198.74,198.73,0.12]
[1756741725830,54.58459147,198.74,198.73,0.12]
[1756741726156,53.86459147,198.74,198.73,0.12]
[1756741726731,53.86459147,198.74,198.63,0.7]
[1756741726732,39.59559401,198.7,198.63,0.7]
[1756741726945,4.2568162,198.64,198.63,0.7]
[1756741727153,39.4,198.64,198.63,0.7]
[1756741727335,39.4,198.64,198.6,3.4568162]
[1756741727536,43.6568162,198.64,198.59,4.2568162]
[1756741727952,4.2568162,198.63,198.59,5.03530183]
[1756741728285,4.2568162,198.63,198.57,12.79001863]
[1756741728286,26.0,198.62,198.57,0.2]
[1756741728453,26.0,198.62,198.57,9.49279268]
[1756741728454,39.4,198.61,198.57,9.49279268]
[1756741728759,39.4,198.61,198.57,5.23597648]
[1756741728969,4.2568162,198.62,198.57,9.49279268]
[1756741729126,39.42,198.61,198.57,5.23597648]
[1756741729329,39.42,198.6,198.57,5.23597648]
[1756741729643,26.0,198.62,198.58,4.9568162]
[1756741729949,26.0,198.62,198.59,0.7]
[1756741730154,39.42,198.61,198.57,0.2]
[1756741730362,4.2568162,198.61,198.57,0.2]
[1756741730563,39.42,198.6,198.57,0.9]
[1756741730856,43.6768162,198.6,198.58,0.7]
[1756741731149,0.14216157,198.59,198.57,0.2]
[1756741731334,65.56216157,198.58,198.57,0.2]
[1756741731751,199.46216157,198.58,198.57,0.2]
[1756741731958,30.39897777,198.58,198.57,0.2]
[1756741732158,4.2568162,198.59,198.57,0.2]
[1756741732338,0.14216157,198.59,198.57,0.9]
[1756741732651,30.2568162,198.6,198.57,0.2]
[1756741732652,43.81897777,198.58,198.57,0.2]
[1756741733762,0.03,198.61,198.57,0.2]
[1756741733955,4.2568162,198.58,198.57,0.2]
[1756741734134,43.81897777,198.58,198.57,0.2]
[1756741734461,44.53897777,198.58,198.57,0.2]
[1756741734660,58.13457178,198.58,198.57,0.2]
[1756741734868,18.49790091,198.58,198.57,0.2]
[1756741735029,77.31820211,198.58,198.57,0.2]
[1756741735233,77.31820211,198.58,198.53,22.869359]
[1756741735234,26.0,198.54,198.53,22.869359]
[1756741735456,58.27457178,198.54,198.53,22.869359]
[1756741735634,63.31134018,198.54,198.53,22.869359]
[1756741736034,23.75134018,198.54,198.53,22.869359]
[1756741736257,63.37134018,198.54,198.53,22.869359]
[1756741736969,23.75134018,198.54,198.53,22.869359]
[1756741737138,63.37134018,198.54,198.53,22.869359]
[1756741738766,28.88582858,198.54,198.53,22.869359]
[1756741739059,77.67725161,198.54,198.53,22.869359]
[1756741739269,78.39725161,198.54,198.53,22.869359]
[1756741739442,63.24917861,198.54,198.53,22.869359]
[1756741739650,13.73775558,198.54,198.53,22.869359]
[1756741739855,54.09775558,198.54,198.53,22.869359]
[1756741740058,57.63457178,198.54,198.53,22.869359]
[1756741740382,0.14216157,198.54,198.53,23.569359]
[1756741740549,39.78216157,198.54,198.53,22.869359]
[1756741740753,69.8968162,198.54,198.53,22.869359]
[1756741740954,88.52917861,198.54,198.53,22.869359]
[1756741741155,88.67134018,198.54,198.53,22.869359]
[1756741741576,89.39134018,198.54,198.53,22.869359]
[1756741741951,79.37775558,198.54,198.53,22.869359]
[1756741742153,26.14216157,198.54,198.53,22.869359]
[1756741742352,70.05897777,198.54,198.53,22.869359]
[1756741742562,70.77897777,198.54,198.53,22.869359]
[1756741742777,84.37457178,198.54,198.53,22.869359]
[1756741742982,44.71457178,198.54,198.53,22.869359]
[1756741743160,84.39457178,198.54,198.53,22.869359]
[1756741743362,89.43134018,198.54,198.53,22.869359]
[1756741743562,63.43134018,198.54,198.53,22.869359]
[1756741744163,4.39897777,198.54,198.53,22.869359]
[1756741744461,70.07897777,198.54,198.53,22.869359]
[1756741745065,70.75897777,198.54,198.53,22.869359]
[1756741745270,70.05897777,198.54,198.53,22.869359]
[1756741745788,75.09574617,198.54,198.53,22.869359]
[1756741746479,84.43452398,198.54,198.53,22.869359]
[1756741746662,83.65457178,198.54,198.53,22.869359]
[1756741746977,26.0,198.54,198.53,22.869359]
[1756741747178,3.00188202,198.67,198.53,23.559359]
[1756741747380,0.14216157,198.55,198.53,23.559359]
[1756741747587,33.86,198.54,198.53,22.869359]
[1756741747786,4.2568162,198.58,198.54,20.0]
[1756741748076,4.2568162,198.55,198.53,22.869359]
[1756741748284,39.66,198.57,198.53,22.869359]
[1756741748285,43.9168162,198.54,198.53,22.869359]
[1756741748481,44.05897777,198.54,198.53,22.869359]
[1756741749576,30.39897777,198.54,198.53,22.869359]
[1756741749779,70.09897777,198.54,198.53,22.869359]
[1756741750181,70.09897777,198.54,198.53,23.559359]
[1756741750182,44.09897777,198.54,198.53,23.559359]
[1756741750568,26.0,198.55,198.53,28.59630085]
[1756741750794,5.0353241,198.6,198.54,20.69]
[1756741750980,26.0,198.59,198.54,20.69]
[1756741751185,0.14216157,198.58,198.55,0.69]
[1756741751409,15.141191,198.6,198.55,20.69]
[1756741751700,39.72,198.59,198.57,20.0]
[1756741751873,20.17349561,198.63,198.57,0.69]
[1756741752195,4.2568162,198.59,198.57,20.69]
[1756741752488,39.72,198.58,198.57,20.0]
[1756741752788,0.03,198.6,198.57,20.0]
[1756741752979,0.03,198.6,198.58,20.69]
[1756741753180,39.73,198.6,198.58,20.69]
[1756741753390,39.73,198.6,198.59,0.69]
[1756741753578,0.03,198.6,198.59,24.9468162]
[1756741753886,0.03,198.6,198.59,29.98231647]
[1756741754090,30.6668162,198.6,198.56,20.69]
[1756741754387,4.2568162,198.58,198.57,0.69]
[1756741755181,4.2568162,198.58,198.54,20.0]
[1756741755387,4.2568162,198.56,198.54,20.69]
[1756741755560,43.9968162,198.57,198.55,20.69]
[1756741755767,43.9968162,198.57,198.55,0.69]
[1756741755768,39.74,198.57,198.55,0.69]
[1756741755962,43.9968162,198.57,198.56,20.0]
[1756741756160,39.74,198.57,198.56,20.69]
[1756741756566,39.74,198.58,198.57,20.0]
[1756741756788,39.74,198.58,198.57,20.69]
[1756741757085,44.0268162,198.6,198.58,20.0]
[1756741757990,44.0268162,198.6,198.58,20.69]
[1756741758191,44.0268162,198.6,198.58,25.72566771]
[1756741758393,4.2568162,198.59,198.58,20.0]
[1756741759088,39.77,198.6,198.58,20.69]
[1756741759287,0.03,198.6,198.58,20.69]
[1756741759497,0.03,198.6,198.59,20.69]
[1756741759996,0.03,198.6,198.59,25.72550027]
[1756741760988,0.03,198.6,198.58,20.0]
[1756741761369,0.14216157,198.58,198.55,20.0]
[1756741761566,4.2568162,198.57,198.55,20.0]
[1756741762294,4.39897777,198.58,198.55,20.0]
[1756741762487,4.39897777,198.58,198.54,20.0]
[1756741762696,4.2568162,198.57,198.55,20.0]
[1756741763064,0.14216157,198.58,198.55,25.72651333]
[1756741763271,44.22897777,198.6,198.56,20.69]
[1756741763492,44.22897777,198.6,198.57,20.69]
[1756741763678,44.22897777,198.6,198.57,20.0]
[1756741763884,44.22897777,198.6,198.58,0.69]
[1756741764210,0.03,198.6,198.58,0.69]
[1756741764493,39.83,198.6,198.58,20.0]
[1756741764792,39.83,198.6,198.59,20.69]
[1756741764995,39.83,198.6,198.58,20.0]
[1756741765174,39.83,198.6,198.59,20.69]
[1756741765376,39.83,198.6,198.59,20.0]
[1756741765682,44.0868162,198.6,198.59,20.0]
[1756741765999,44.0868162,198.6,198.58,20.0]
[1756741766773,39.83,198.6,198.59,20.69]
[1756741767298,39.83,198.6,198.58,20.0]
[1756741767593,39.81,198.6,198.58,20.0]
[1756741767792,44.0668162,198.6,198.57,20.0]
[1756741767999,4.2568162,198.59,198.56,20.69]
[1756741768168,4.2568162,198.59,198.57,20.0]
[1756741768783,4.2868162,198.6,198.57,20.0]
[1756741769096,0.03,198.6,198.59,25.03550027]
[1756741769298,0.03,198.6,198.59,25.72550027]
[1756741770292,0.03,198.6,198.59,20.69]
[1756741770482,0.03,198.6,198.59,20.0]
[1756741770813,0.03,198.6,198.58,20.0]
[1756741771176,0.03,198.6,198.57,25.15596143]
[1756741771177,4.42897777,198.6,198.57,25.15596143]
[1756741771377,0.17216157,198.6,198.58,20.69]
[1756741771784,0.17216157,198.6,198.57,5.15596143]
[1756741771990,4.42897777,198.6,198.58,20.0]
[1756741772374,4.42897777,198.6,198.57,20.12]
[1756741772691,4.42897777,198.6,198.58,20.0]
[1756741773405,0.14216157,198.58,198.57,0.12]
[1756741773578,5.09897777,198.58,198.57,0.12]
[1756741774190,20.24246277,198.58,198.57,0.12]
[1756741775172,25.27821662,198.58,198.57,0.12]
[1756741777433,65.01821662,198.58,198.57,0.12]
[1756741777791,65.01821662,198.58,198.53,22.869359]
[1756741777792,26.0,198.55,198.53,22.869359]
[1756741777992,44.87897777,198.54,198.53,22.869359]
[1756741778602,60.02628577,198.54,198.53,22.869359]
[1756741779207,65.06305417,198.54,198.53,22.869359]
[1756741779726,25.26305417,198.54,198.53,22.869359]
[1756741779906,20.22628577,198.54,198.53,22.869359]
[1756741780110,19.54628577,198.54,198.53,22.869359]
[1756741780424,24.58305417,198.54,198.53,22.869359]
[1756741780726,64.36305417,198.54,198.53,22.869359]
[1756741781024,65.04305417,198.54,198.53,22.869359]
[1756741781825,64.34305417,198.54,198.53,22.869359]
[1756741782200,65.02305417,198.54,198.53,22.869359]
[1756741784024,64.34305417,198.54,198.53,22.869359]
[1756741784232,19.54628577,198.54,198.53,22.869359]
[1756741784524,45.54628577,198.54,198.53,22.869359]
[1756741785200,85.26628577,198.54,198.53,22.869359]
[1756741785402,90.30305417,198.54,198.53,22.869359]
[1756741786013,81.00946957,198.54,198.53,22.869359]
[1756741786334,45.54628577,198.54,198.53,22.869359]
[1756741786516,85.26628577,198.54,198.53,22.869359]
[1756741787033,45.54628577,198.54,198.53,23.569359]
[1756741787216,85.26628577,198.54,198.53,22.869359]
[1756741787404,90.30305417,198.54,198.53,22.869359]
[1756741790233,45.54628577,198.54,198.53,22.869359]
[1756741790431,85.22628577,198.54,198.53,22.869359]
[1756741791529,90.26305417,198.54,198.53,22.869359]
[1756741791704,50.58305417,198.54,198.53,22.869359]
[1756741791906,90.26305417,198.54,198.53,22.869359]
[1756741792333,50.58305417,198.54,198.53,22.869359]
[1756741792533,90.24305417,198.54,198.53,22.869359]
[1756741792832,64.92305417,198.54,198.53,22.869359]
[1756741793923,64.22305417,198.54,198.53,22.869359]